bitfinex/quotes_SOLUSD_20260108
["timestamp","ask_amount","ask_price","bid_price","bid_amount"]
[1767882750275,6.32046752,133.95,133.89,0.69096112]
[1767882750578,6.32046752,133.95,133.9,5.63372269]
[1767882751381,6.32046752,133.94,133.87,7.75406742]
[1767882751696,6.32046752,133.94,133.88,5.63372269]
[1767882751697,5.63372269,133.92,133.88,5.63372269]
[1767882752017,5.63372269,133.91,133.87,5.63372269]
[1767882752196,13.64,133.97,133.9,6.32823643]
[1767882752371,37.31343283,134.0,133.92,5.63372269]
[1767882752372,14.33797333,133.98,133.92,5.63372269]
[1767882752576,14.33797333,133.98,133.91,0.69451374]
[1767882752577,6.33169602,133.96,133.91,5.63372269]
[1767882752996,5.63372269,133.98,133.94,5.63372269]
[1767882753194,6.33169602,133.99,133.94,5.63372269]
[1767882753396,0.2,134.01,133.95,0.69451374]
[1767882753601,0.2,134.01,133.98,5.63372269]
[1767882753978,0.2,134.01,133.97,0.69451374]
[1767882754281,7.66226214,134.01,133.96,5.63372269]
[1767882754508,13.29598483,134.01,133.96,5.63372269]
[1767882754796,13.29598483,134.01,133.97,5.63372269]
[1767882754996,13.29598483,134.01,133.95,5.63372269]
[1767882754997,27.01555969,134.01,133.95,5.63372269]
[1767882755187,8.36023547,134.01,133.94,0.69451374]
[1767882755394,6.53169602,134.01,133.97,5.63372269]
[1767882755594,7.66221009,134.01,133.98,5.63372269]
[1767882756389,0.2,134.01,133.98,5.63372269]
[1767882756586,13.29595046,134.01,133.96,5.63372269]
[1767882756892,13.99392379,134.01,133.96,5.63372269]
[1767882757210,0.69797333,134.0,133.96,5.63372269]
[1767882757709,13.79456273,134.0,133.96,5.63372269]
[1767882758000,13.0965894,134.0,133.95,5.63372269]
[1767882758409,5.63372269,133.99,133.94,5.63372269]
[1767882758708,6.33169602,133.98,133.91,8.16206023]
[1767882758911,0.69797333,133.97,133.92,5.63372269]
[1767882759207,5.63372269,133.98,133.94,5.63372269]
[1767882759417,6.33169602,133.98,133.92,8.16113595]
[1767882759589,0.69797333,133.98,133.94,5.63372269]
[1767882759789,0.89797333,134.01,133.95,5.63372269]
[1767882759984,0.89797333,134.01,133.96,5.63372269]
[1767882759985,13.99397958,134.01,133.96,5.63372269]
[1767882760211,8.36025689,134.01,133.96,5.63372269]
[1767882760409,13.99397958,134.01,133.97,5.63372269]
[1767882760806,32.6493038,134.01,133.95,0.69451374]
[1767882760999,8.36025689,134.01,133.96,5.63372269]
[1767882761308,0.2,134.01,133.98,5.63372269]
[1767882761515,13.29605879,134.01,133.97,5.63372269]
[1767882761900,7.6623361,134.01,133.97,5.63372269]
[1767882762299,0.2,134.01,133.98,0.69451374]
[1767882762495,0.2,134.01,133.99,5.63372269]
[1767882762890,8.36032951,134.01,133.97,5.63372269]
[1767882763207,0.89797333,134.01,133.97,5.63372269]
[1767882763407,13.99405271,134.01,133.95,0.69451374]
[1767882763612,6.33169602,133.99,133.94,5.63372269]
[1767882763803,5.63372269,133.95,133.9,5.63372269]
[1767882764009,5.63372269,133.95,133.91,5.63372269]
[1767882764308,0.69797333,133.97,133.93,5.63372269]
[1767882764699,0.69797333,133.97,133.91,8.1620019]
[1767882764911,0.69797333,133.97,133.93,5.63372269]
[1767882765101,6.33169602,133.97,133.92,5.63372269]
[1767882765289,6.33169602,133.96,133.89,0.69451374]
[1767882765495,5.63372269,133.94,133.89,0.69451374]
[1767882765691,13.10072416,133.93,133.87,0.69451374]
[1767882765892,5.63372269,133.89,133.84,5.63372269]
[1767882766092,5.63372269,133.89,133.83,0.69451374]
[1767882766302,5.63372269,133.9,133.85,13.79927461]
[1767882766487,0.69797333,133.92,133.87,5.63372269]
[1767882766699,6.33169602,133.92,133.88,5.63372269]
[1767882766894,6.33169602,133.91,133.83,0.69451374]
[1767882767096,0.69797333,133.9,133.86,13.10421261]
[1767882767514,6.33169602,133.89,133.82,1.44178619]
[1767882767713,0.28432314,133.94,133.77,37.3753014]
[1767882767714,0.69797333,133.86,133.8,8.16815981]
[1767882767915,5.63372269,133.85,133.8,6.32823643]
[1767882768106,5.63372269,133.84,133.79,5.63372269]
[1767882769128,5.63372269,133.82,133.75,1.44217729]
[1767882769311,5.63372269,133.81,133.77,5.63372269]
[1767882769825,5.63372269,133.81,133.74,18.97669845]
[1767882769826,5.63372269,133.79,133.74,13.80500272]
[1767882769994,13.10756424,133.8,133.75,5.63372269]
[1767882770392,5.63372269,133.8,133.75,13.1102706]
[1767882770630,7.47232709,133.83,133.78,5.63372269]
[1767882770839,13.10604978,133.83,133.78,5.63372269]
[1767882771065,7.47232709,133.83,133.78,5.63372269]
[1767882771344,7.47232709,133.83,133.75,0.69451374]
[1767882771345,6.33169602,133.79,133.75,0.69451374]
[1767882771513,6.33169602,133.76,133.67,0.1]
[1767882771842,0.69797333,133.78,133.71,5.63372269]
[1767882772140,0.69797333,133.77,133.73,5.63372269]
[1767882772540,5.63372269,133.78,133.73,5.63372269]
[1767882772747,0.69797333,133.81,133.77,5.63372269]
[1767882772916,0.69797333,133.81,133.78,5.63372269]
[1767882773116,0.69797333,133.81,133.71,1.03221035]
[1767882773320,0.69797333,133.8,133.71,1.03221035]
[1767882773522,14.33797333,133.82,133.77,5.63372269]
[1767882773723,13.80497206,133.82,133.77,5.63372269]
[1767882773925,13.80497206,133.82,133.76,13.10967964]
[1767882773926,6.33169602,133.81,133.76,13.10967964]
[1767882774130,0.69797333,133.81,133.77,13.10923326]
[1767882774436,0.69797333,133.83,133.8,5.63372269]
[1767882774615,0.69797333,133.85,133.81,5.63372269]
[1767882774817,0.69797333,133.85,133.78,0.97883688]
[1767882775134,6.30169603,133.85,133.81,5.63372269]
[1767882775328,5.63372269,133.84,133.8,5.63372269]
[1767882775518,7.47063241,133.86,133.81,5.63372269]
[1767882775716,5.63372269,133.82,133.75,76.23451374]
[1767882776023,5.63372269,133.83,133.79,5.63372269]
[1767882776236,13.10576337,133.84,133.77,0.28432314]
[1767882776442,5.63372269,133.84,133.79,5.63372269]
[1767882776620,16.60928736,133.85,133.8,9.13806285]
[1767882776946,0.69797333,133.84,133.79,9.13806285]
[1767882777127,0.69797333,133.85,133.77,0.69451374]
[1767882777323,9.83603618,133.84,133.8,9.13806285]
[1767882777732,17.30659811,133.86,133.81,9.13806285]
[1767882778039,17.30659811,133.86,133.76,14.33451374]
[1767882778040,0.69797333,133.83,133.76,14.33451374]
[1767882778248,0.69797333,133.83,133.79,9.13806285]
[1767882778417,0.69797333,133.83,133.78,7.47487314]
[1767882778739,0.69797333,133.85,133.8,9.13806285]
[1767882778923,9.13806285,133.84,133.8,9.13806285]
[1767882779124,0.69797333,133.85,133.8,9.13806285]
[1767882779425,0.69797333,133.85,133.81,9.13806285]
[1767882779742,9.83603618,133.84,133.78,8.16898188]
[1767882779937,9.83603618,133.84,133.77,19.71983999]
[1767882779938,9.83603618,133.83,133.77,7.47532494]
[1767882780136,8.16927451,133.85,133.8,9.13806285]
[1767882780330,9.83603618,133.83,133.78,9.13806285]
[1767882780525,9.83603618,133.83,133.73,0.69451374]
[1767882780526,9.83603618,133.79,133.73,0.69451374]
[1767882780728,0.69797333,133.8,133.78,9.13806285]
[1767882780932,32.8291439,133.85,133.78,9.13806285]
[1767882780933,26.1490332,133.85,133.78,9.13806285]
[1767882781129,7.471409,133.85,133.8,9.13806285]
[1767882781332,7.47056082,133.86,133.78,26.16229196]
[1767882781532,7.46895265,133.89,133.8,0.69451374]
[1767882781824,7.46895265,133.89,133.82,9.13806285]
[1767882781825,16.608063,133.87,133.82,9.13806285]
[1767882782218,9.13806285,133.83,133.77,7.47530992]
[1767882782441,7.46957343,133.88,133.82,9.13806285]
[1767882782644,7.46957343,133.88,133.8,8.14795599]
[1767882782645,9.13806285,133.86,133.8,8.14795599]
[1767882782831,9.83555765,133.87,133.83,9.13806285]
[1767882783037,9.83555765,133.87,133.84,9.13806285]
[1767882783038,0.6974948,133.87,133.84,9.13806285]
[1767882783344,9.13806285,133.89,133.84,9.13806285]
[1767882783544,0.6974948,133.89,133.86,9.13806285]
[1767882783727,0.6974948,133.89,133.82,0.81659094]
[1767882784048,0.6974948,133.87,133.81,21.25505295]
[1767882784223,9.83555765,133.85,133.81,9.13806285]
[1767882784427,0.6974948,133.85,133.81,9.13806285]
[1767882784635,9.83555765,133.86,133.82,9.13806285]
[1767882784844,0.6974948,133.86,133.82,9.13806285]
[1767882785239,26.14103112,133.89,133.82,8.13688707]
[1767882785240,0.70151552,133.88,133.82,8.13688707]
[1767882785433,0.70151552,133.86,133.79,18.6849558]
[1767882785638,0.70151552,133.86,133.81,9.13806285]
[1767882785835,0.70151552,133.86,133.82,9.13806285]
[1767882786149,0.70151552,133.89,133.85,9.13806285]
[1767882786323,9.83957837,133.89,133.85,9.13806285]
[1767882786528,0.70151552,133.89,133.85,9.13806285]
[1767882786746,9.83957837,133.88,133.82,8.13697459]
[1767882787046,8.16999943,133.9,133.85,9.13806285]
[1767882787248,9.83957837,133.9,133.86,9.13806285]
[1767882787552,0.70151552,133.92,133.88,9.13806285]
[1767882787737,9.83957837,133.92,133.88,9.13806285]
[1767882787948,0.70151552,133.92,133.88,16.60709392]
[1767882788139,9.83957837,133.94,133.89,9.13806285]
[1767882788342,8.16623359,133.97,133.91,9.13806285]
[1767882788551,9.13806285,133.95,133.9,9.13806285]
[1767882788725,9.13806285,133.95,133.84,20.3201107]
[1767882788726,9.83957837,133.93,133.87,8.13400789]
[1767882789050,9.83957837,133.96,133.91,9.13806285]
[1767882789253,0.70151552,133.96,133.92,9.13806285]
[1767882789578,9.83957837,133.96,133.92,9.13806285]
[1767882789930,17.30470693,133.96,133.92,9.13806285]
[1767882790135,9.83957837,133.93,133.87,0.66426169]
[1767882790333,9.83957837,133.92,133.85,0.66426169]
[1767882790631,9.83957837,133.92,133.88,9.13806285]
[1767882790834,9.83957837,133.92,133.87,9.13806285]
[1767882791135,0.70151552,133.92,133.87,9.13806285]
[1767882791340,9.83957837,133.92,133.86,7.47026748]
[1767882791553,9.13806285,133.91,133.85,8.41944396]
[1767882791854,9.83957837,133.92,133.87,9.13806285]
[1767882792057,0.70151552,133.92,133.88,9.13806285]
[1767882792228,0.70151552,133.96,133.91,9.13806285]
[1767882792562,0.70151552,133.96,133.92,9.13806285]
[1767882793236,0.70151552,133.96,133.93,9.13806285]
[1767882793439,0.70151552,133.96,133.92,9.13806285]
[1767882793657,0.2,134.01,133.96,0.66426169]
[1767882793951,0.2,134.01,133.99,9.13806285]
[1767882794165,8.36368621,134.01,133.96,9.13806285]
[1767882794340,17.50174906,134.01,133.96,9.13806285]
[1767882794543,0.70151552,134.0,133.95,7.46539761]
[1767882794734,0.70151552,134.0,133.96,9.13806285]
[1767882794933,7.66227903,134.01,133.97,9.13806285]
[1767882795244,9.13806285,134.0,133.95,9.13806285]
[1767882795442,9.13806285,134.0,133.94,8.13013667]
[1767882795443,0.90151552,134.01,133.97,9.13806285]
[1767882795742,0.90151552,134.01,133.98,9.13806285]
[1767882795743,0.2,134.01,133.98,9.13806285]
[1767882796353,0.2,134.01,133.97,9.13806285]
[1767882796665,0.2,134.01,133.93,0.28432314]
[1767882796666,0.70151552,133.98,133.93,0.28432314]
[1767882796850,0.70151552,133.98,133.93,9.13806285]
[1767882797077,9.83957837,133.98,133.92,8.13122796]
[1767882797274,0.70151552,133.97,133.92,9.13806285]
[1767882797564,0.70151552,133.97,133.91,16.60560247]
[1767882797746,0.70151552,133.97,133.93,9.13806285]
[1767882797949,9.13806285,133.98,133.93,9.13806285]
[1767882798149,9.83957837,133.98,133.93,9.13806285]
[1767882798342,8.16431385,134.0,133.95,9.13806285]
[1767882798550,17.3023767,134.0,133.95,9.13806285]
[1767882798743,17.3023767,134.0,133.94,9.13806285]
[1767882798944,9.13806285,133.97,133.91,0.66426169]
[1767882799160,9.13806285,133.94,133.89,7.46874864]
[1767882799465,0.70151552,133.95,133.9,9.13806285]
[1767882799663,9.13806285,133.94,133.9,9.13806285]
[1767882799847,0.70151552,133.95,133.89,8.13285269]
[1767882800040,0.70151552,133.95,133.89,17.27091554]
[1767882800242,9.13806285,133.93,133.89,9.13806285]
[1767882800566,17.30616254,133.94,133.89,16.60683738]
[1767882800857,17.30616254,133.94,133.9,9.13806285]
[1767882800858,0.70151552,133.94,133.9,9.13806285]
[1767882801059,8.16735508,133.95,133.9,9.13806285]
[1767882801263,0.70151552,133.95,133.91,9.13806285]
[1767882801449,9.83957837,133.95,133.91,9.13806285]
[1767882801645,9.83957837,133.95,133.89,7.4686081]
[1767882801848,32.30020459,133.98,133.92,9.13806285]
[1767882801849,8.16587321,133.97,133.92,9.13806285]
[1767882802045,9.13806285,133.95,133.9,9.13806285]
[1767882802555,9.13806285,133.93,133.89,9.13806285]
[1767882802747,7.46577506,133.95,133.89,9.13806285]
[1767882802952,0.70151552,133.97,133.91,0.66426169]
[1767882803143,0.70151552,133.97,133.9,0.28432314]
[1767882803345,9.13806285,133.96,133.92,9.13806285]
[1767882803551,9.83957837,133.97,133.92,9.13806285]
[1767882803864,0.70151552,133.92,133.88,9.13806285]
[1767882804063,0.67151553,133.92,133.87,9.13806285]
[1767882804250,9.13806285,133.9,133.86,9.13806285]
[1767882804655,17.2769049,133.92,133.87,9.13806285]
[1767882804865,18.66677606,133.93,133.88,9.13806285]
[1767882804866,9.13806285,133.93,133.88,9.13806285]
[1767882805046,13.64,133.95,133.88,9.13806285]
[1767882805244,16.60409241,133.94,133.87,0.66426169]
[1767882805446,16.60409241,133.94,133.89,9.13806285]
[1767882805946,8.16721905,133.95,133.9,9.13806285]
[1767882806146,0.70151552,133.95,133.92,9.13806285]
[1767882806363,8.16420208,134.0,133.94,16.60356634]
[1767882806562,0.2,134.01,133.98,9.13806285]
[1767882806866,0.2,134.01,133.99,9.13806285]
[1767882807060,8.36412826,134.01,133.95,0.28432314]
[1767882807363,0.70151552,134.0,133.97,9.13806285]
[1767882807667,0.70151552,134.0,133.98,9.13806285]
[1767882807853,0.2,134.01,133.95,0.28432314]
[1767882808054,0.70151552,133.99,133.93,7.46641465]
[1767882808265,0.70151552,133.99,133.94,9.13806285]
[1767882808469,0.70151552,133.99,133.96,9.13806285]
[1767882808764,0.90151552,134.01,133.98,9.13806285]
[1767882808944,8.36371692,134.01,133.95,8.12973383]
[1767882809138,0.90151552,134.01,133.95,8.12973383]
[1767882809364,0.70151552,133.98,133.91,20.98437239]
[1767882809663,0.70151552,133.97,133.92,9.13806285]
[1767882809849,9.83957837,133.97,133.92,9.13806285]
[1767882810255,0.70151552,133.97,133.92,9.13806285]
[1767882810449,0.70151552,133.97,133.89,8.13266894]
[1767882810450,0.70151552,133.96,133.89,8.13266894]
[1767882810659,9.83957837,133.94,133.88,7.46925941]
[1767882810864,9.13806285,133.95,133.88,0.94858483]
[1767882811069,9.13806285,133.95,133.91,9.13806285]
[1767882811242,26.12547912,133.97,133.9,9.13806285]
[1767882811573,9.13806285,133.93,133.85,19.34133245]
[1767882811877,39.90764069,133.97,133.87,9.13806285]
[1767882812051,26.26764069,133.97,133.86,9.13806285]
[1767882812245,26.26764069,133.97,133.89,9.13806285]
[1767882812246,0.28432314,133.95,133.89,9.13806285]
[1767882812443,9.13806285,133.92,133.88,9.13806285]
[1767882812672,7.46435769,133.97,133.9,9.13806285]
[1767882812877,8.14229884,133.98,133.9,0.67874165]
[1767882813045,8.14229884,133.98,133.89,0.28432314]
[1767882813046,9.13806285,133.95,133.89,0.28432314]
[1767882813246,9.81637621,133.95,133.88,26.8213538]
[1767882813543,0.67831336,133.93,133.87,7.61191232]
[1767882813746,9.81637621,133.93,133.88,9.13806285]
[1767882813963,48.90154974,133.98,133.85,7.4709043]
[1767882813964,9.81637621,133.91,133.85,7.4709043]
[1767882814147,9.81637621,133.9,133.84,8.15030797]
[1767882814359,9.13806285,133.88,133.84,9.13806285]
[1767882814602,9.13806285,133.88,133.77,37.6478748]
[1767882814603,9.81637621,133.87,133.8,19.36262427]
[1767882814869,9.13806285,133.85,133.81,9.13806285]
[1767882815074,9.13806285,133.84,133.79,9.13806285]
[1767882815262,0.67831336,133.85,133.8,9.13806285]
[1767882815457,9.81637621,133.85,133.81,9.13806285]
[1767882815651,9.13806285,133.84,133.8,16.61174941]
[1767882815880,0.67831336,133.87,133.82,9.13806285]
[1767882816178,9.81637621,133.86,133.82,9.13806285]
[1767882816377,0.67831336,133.86,133.82,9.13806285]
[1767882816578,8.14892173,133.86,133.82,9.13806285]
[1767882816877,8.14892173,133.86,133.79,19.3635242]
[1767882816878,0.67831336,133.85,133.79,8.15297035]
[1767882817058,0.67831336,133.85,133.8,9.13806285]
[1767882817246,9.81637621,133.85,133.8,16.61188279]
[1767882817452,0.67831336,133.85,133.8,16.61188279]
[1767882817647,0.67831336,133.84,133.77,26.98399445]
[1767882817876,9.81637621,133.82,133.77,16.61309978]
[1767882818157,0.67831336,133.82,133.78,9.13806285]
[1767882818456,9.81637621,133.82,133.78,9.13806285]
[1767882818656,17.28937433,133.82,133.78,9.13806285]
[1767882818871,13.64,133.85,133.81,9.13806285]
[1767882819066,0.67831336,133.86,133.83,9.13806285]
[1767882819241,0.67831336,133.86,133.84,9.13806285]
[1767882819648,9.81637621,133.86,133.82,9.13806285]
[1767882820087,17.2869758,133.86,133.82,9.13806285]
[1767882820459,0.67831336,133.85,133.79,0.67874165]
[1767882820661,0.67831336,133.85,133.82,9.13806285]
[1767882820874,13.64,133.88,133.83,9.13806285]
[1767882821168,9.13806285,133.86,133.82,9.13806285]
[1767882821482,0.67831336,133.84,133.8,9.13806285]
[1767882821658,0.67831336,133.84,133.81,9.13806285]
[1767882822169,9.81637621,133.82,133.76,8.15465204]
[1767882822356,9.81637621,133.81,133.77,9.13806285]
[1767882822552,13.64,133.84,133.75,7.4762697]
[1767882822553,0.67831336,133.8,133.75,7.4762697]
[1767882822880,9.13806285,133.79,133.75,9.13806285]
[1767882823274,9.13806285,133.79,133.74,9.13806285]
[1767882823660,9.13806285,133.78,133.72,8.15669104]
[1767882823856,9.13806285,133.78,133.73,9.13806285]
[1767882824172,9.13806285,133.78,133.74,9.13806285]
[1767882824766,0.67831336,133.78,133.74,9.13806285]
[1767882824961,0.67831336,133.77,133.74,9.13806285]
[1767882825167,0.67831336,133.77,133.73,9.13806285]
[1767882825366,0.67831336,133.74,133.69,62.0]
[1767882825656,0.67831336,133.74,133.7,16.61744481]
[1767882825880,0.67831336,133.76,133.71,9.13806285]
[1767882826071,0.67831336,133.76,133.72,7.47829309]
[1767882826272,9.81637621,133.76,133.69,0.1]
[1767882826473,0.67831336,133.75,133.72,7.47822593]
[1767882826665,9.81637621,133.77,133.73,9.13806285]
[1767882826972,8.15291467,133.79,133.74,9.13806285]
[1767882827170,9.81637621,133.78,133.73,7.47766329]
[1767882827376,8.15235772,133.8,133.74,9.13806285]
[1767882827576,16.61141591,133.81,133.77,9.13806285]
[1767882827957,9.13806285,133.81,133.77,9.13806285]
[1767882828494,16.61145135,133.81,133.74,0.96306479]
[1767882828773,16.61145135,133.81,133.77,9.13806285]
[1767882828977,7.4733885,133.81,133.77,9.13806285]
[1767882829355,0.67831336,133.82,133.78,9.13806285]
[1767882829555,37.35064532,133.87,133.78,9.13806285]
[1767882829556,0.67831336,133.86,133.81,9.13806285]
[1767882829757,0.67831336,133.86,133.82,9.13806285]
[1767882829952,0.67831336,133.86,133.83,9.13806285]
[1767882830165,0.67831336,133.86,133.82,9.13806285]
[1767882830455,0.67831336,133.85,133.82,9.13806285]
[1767882831178,17.28652998,133.87,133.82,16.61076815]
[1767882831762,17.28652998,133.87,133.83,9.13806285]
[1767882831966,21.78733754,133.89,133.84,9.13806285]
[1767882832164,0.67831336,133.89,133.86,9.13806285]
[1767882832366,0.67831336,133.91,133.87,9.13806285]
[1767882832583,0.67831336,134.0,133.9,9.13806285]
[1767882832768,0.67831336,133.97,133.91,7.46770218]
[1767882832955,0.67831336,133.99,133.9,0.67874165]
[1767882833160,9.13806285,133.95,133.9,7.4682401]
[1767882833421,0.67831336,133.96,133.9,7.4682401]
[1767882833563,9.13806285,133.94,133.9,9.13806285]
[1767882833765,0.67831336,133.95,133.9,9.13806285]
[1767882833963,9.81637621,133.95,133.9,9.13806285]
[1767882834774,0.67831336,133.97,133.89,0.67874165]
[1767882834981,16.60199235,133.98,133.93,9.13806285]
[1767882835175,8.14224286,133.98,133.93,9.13806285]
[1767882835381,9.81637621,133.98,133.94,9.13806285]
[1767882835581,9.81637621,133.98,133.91,0.96306479]
[1767882835776,0.67831336,133.98,133.94,9.13806285]
[1767882835984,17.2803601,133.98,133.94,9.13806285]
[1767882836373,0.67831336,134.0,133.97,9.13806285]
[1767882836569,8.14100586,134.0,133.93,0.67874165]
[1767882836772,8.14100586,134.0,133.96,9.13806285]
[1767882836986,17.27906871,134.0,133.96,9.13806285]
[1767882837192,17.27906871,134.0,133.95,9.13806285]
[1767882837394,9.81637621,133.98,133.93,9.13806285]
[1767882837580,9.81637621,133.98,133.94,9.13806285]
[1767882838174,0.67831336,133.98,133.94,9.13806285]
[1767882838374,9.81637621,133.96,133.89,0.67874165]
[1767882838699,13.75645169,133.96,133.9,7.46825239]
[1767882838893,6.29136898,133.95,133.9,5.61305562]
[1767882839214,6.29136898,133.92,133.88,5.61305562]
[1767882839401,0.67831336,133.92,133.88,5.61305562]
[1767882839689,0.67831336,133.95,133.9,5.61305562]
[1767882839898,21.78278326,133.97,133.92,5.61305562]
[1767882840105,5.61305562,133.96,133.92,5.61305562]
[1767882840599,0.67831336,134.0,133.95,5.61305562]
[1767882840788,8.14112742,134.0,133.96,5.61305562]
[1767882840988,0.2,134.01,133.98,5.61305562]
[1767882841291,0.2,134.01,134.0,5.61305562]
[1767882841500,0.87831336,134.01,133.97,5.61305562]
[1767882841698,0.2,134.01,133.99,5.61305562]
[1767882841908,0.2,134.01,134.0,5.61305562]
[1767882842201,0.2,134.01,133.96,0.67874165]
[1767882842406,0.2,134.05,133.98,0.68830027]
[1767882842706,7.65995476,134.05,133.99,7.46324352]
[1767882842884,0.2,134.05,134.03,5.61305562]
[1767882843087,0.2,134.05,134.02,5.61305562]
[1767882843484,6.29044177,134.04,134.0,5.61305562]
[1767882843690,7.65995751,134.05,133.97,7.46391732]
[1767882843691,0.67738615,134.03,133.97,7.46391732]
[1767882843878,0.67738615,134.03,133.98,7.46353651]
[1767882844196,0.67738615,134.01,133.98,5.61305562]
[1767882844393,5.61305562,134.03,133.99,5.61305562]
[1767882844896,0.2,134.05,134.02,5.61305562]
[1767882845206,0.2,134.05,133.97,0.72002448]
[1767882845207,26.30969611,134.05,133.97,0.72002448]
[1767882845405,0.2,134.05,134.0,0.72002448]
[1767882845615,0.2,134.05,134.04,5.61305562]
[1767882845979,0.2,134.05,134.02,0.72002448]
[1767882846181,0.2,134.05,134.0,0.72002448]
[1767882846387,0.2,134.05,134.04,5.61305562]
[1767882847099,0.2,134.05,134.03,5.61305562]
[1767882847311,0.2,134.07,134.04,5.61305562]
[1767882847492,0.2,134.07,134.05,5.61305562]
[1767882847881,0.2,134.08,134.04,8.18048404]
[1767882848076,5.81305562,134.08,134.03,7.46057681]
[1767882848298,5.81305562,134.08,134.02,8.18140838]
[1767882848299,7.65832511,134.08,134.02,8.18140838]
[1767882848498,27.00288097,134.08,134.01,8.18177641]
[1767882848800,0.89897114,134.08,134.04,5.61305562]
[1767882848990,0.2,134.08,134.07,5.61305562]
[1767882849308,0.2,134.08,134.04,0.72002448]
[1767882849502,0.2,134.08,134.07,5.61305562]
[1767882849802,0.2,134.1,134.07,5.61305562]
[1767882850009,0.2,134.13,134.09,5.61305562]
[1767882850191,0.69897114,134.1,134.03,0.72002448]
[1767882850507,0.69897114,134.12,134.09,5.61305562]
[1767882850893,0.2,134.13,134.09,5.61305562]
[1767882851103,0.69897114,134.11,134.04,1.00434762]
[1767882851278,0.69897114,134.11,134.05,0.72002448]
[1767882851479,6.31202676,134.08,134.0,0.72002448]
[1767882851682,6.31202676,134.05,134.0,5.61305562]
[1767882851910,0.69897114,134.05,133.98,8.18343259]
[1767882852117,5.61305562,134.03,133.98,0.72002448]
[1767882852408,0.69897114,134.06,134.0,5.61305562]
[1767882852611,0.69897114,134.05,134.01,5.61305562]
[1767882852910,0.69897114,134.04,133.99,13.07620579]
[1767882853082,7.45934656,134.06,134.0,5.61305562]
[1767882853282,7.45934656,134.06,133.97,0.72002448]
[1767882853283,5.61305562,134.02,133.97,0.72002448]
[1767882853478,0.69897114,134.05,133.98,6.3330801]
[1767882853682,21.07934656,134.06,134.0,6.3330801]
[1767882853923,5.61305562,134.05,134.0,6.3330801]
[1767882854291,13.62,134.06,134.03,5.61305562]
[1767882854492,19.23305562,134.06,134.0,0.28432314]
[1767882854696,5.61305562,134.05,134.0,0.72002448]
[1767882855017,5.61305562,134.04,134.0,0.72002448]
[1767882855309,0.69897114,134.04,133.97,5.61305562]
[1767882855486,5.61305562,134.02,133.97,5.61305562]
[1767882855684,7.46033465,134.05,134.0,6.3330801]
[1767882856998,13.76998133,134.09,134.03,0.72002448]
[1767882857186,13.76998133,134.09,134.05,5.61305562]
[1767882857386,5.61305562,134.08,134.04,5.61305562]
[1767882857619,5.61305562,134.08,134.03,0.72002448]
[1767882858119,26.8011199,134.09,134.01,6.3330801]
[1767882858416,5.61305562,134.06,134.0,7.46264502]
[1767882858713,13.76216157,134.08,134.04,5.61305562]
[1767882858714,13.62,134.08,134.04,5.61305562]
[1767882859013,5.61305562,134.06,134.0,0.72002448]
[1767882859190,5.61305562,134.05,134.0,6.3330801]
[1767882859386,39.72393118,134.08,134.0,0.72002448]
[1767882859387,5.61305562,134.04,134.0,0.72002448]
[1767882859708,5.61305562,134.01,133.95,0.72002448]
[1767882859888,13.90432314,134.04,133.96,5.61305562]
[1767882860203,5.61305562,133.99,133.95,0.72002448]
[1767882860502,5.61305562,133.99,133.89,0.74688176]
[1767882860503,5.61305562,133.98,133.93,6.3330801]
[1767882860703,0.69897114,134.0,133.93,6.3330801]
[1767882860893,5.61305562,133.96,133.91,8.18767403]
[1767882861093,5.61305562,133.92,133.88,0.72002448]
[1767882861299,26.12551768,133.97,133.86,8.19048398]
[1767882861300,5.61305562,133.9,133.86,8.19048398]
[1767882861490,5.61305562,133.9,133.86,0.72002448]
[1767882861684,5.61305562,133.87,133.83,5.61305562]
[1767882861903,5.61305562,133.88,133.84,0.72002448]
[1767882862211,14.31897114,133.92,133.85,6.3330801]
[1767882862416,13.62,133.93,133.87,6.3330801]
[1767882862604,19.23305562,133.93,133.87,0.72002448]
[1767882862909,19.23305562,133.93,133.88,5.61305562]
[1767882863102,21.08663324,133.93,133.88,5.61305562]
[1767882863421,5.61305562,133.92,133.87,0.72002448]
[1767882863601,5.61305562,133.91,133.87,0.72002448]
[1767882863915,21.78560438,133.93,133.88,5.61305562]
[1767882864108,27.39866,133.93,133.88,5.61305562]
[1767882864314,26.69968886,133.93,133.87,8.18990014]
[1767882864496,13.62,133.93,133.89,5.61305562]
[1767882864695,7.46605227,133.94,133.9,5.61305562]
[1767882864696,5.61305562,133.94,133.9,5.61305562]
[1767882864898,7.46502222,133.96,133.92,5.61305562]
[1767882865097,7.46502222,133.96,133.9,8.18815308]
[1767882865098,13.07807784,133.96,133.9,0.72002448]
[1767882865320,13.07807784,133.96,133.91,5.61305562]
[1767882865321,5.61305562,133.95,133.91,5.61305562]
[1767882865514,0.69897114,133.96,133.91,13.0806806]
[1767882865725,13.77652681,133.97,133.91,0.72002448]
[1767882865902,13.77652681,133.97,133.92,5.61305562]
[1767882866316,13.076966,133.98,133.93,5.61305562]
[1767882866611,13.076966,133.98,133.91,5.61305562]